[Event "*** Titled Tuesday Blitz"]
[Site "Chess.com"]
[Date "2019.03.05"]
[Round "9"]
[White "ahkashefi2800"]
[Black "jflup"]
[Result "1-0"]
[WhiteElo "2280"]
[BlackElo "2375"]
[TimeControl "180+2"]
[EndTime "15:12:42 PST"]
[Termination "ahkashefi2800 won by resignation"]

1. d4 {[%clk 0:03:01.9]} 1... Nf6 {[%clk 0:03:00.7]} 2. Nf3 {[%clk 0:03:02.8]}
2... g6 {[%clk 0:02:59.1]} 3. g3 {[%clk 0:02:59.5]} 3... Bg7 {[%clk 0:02:59.2]}
4. Bg2 {[%clk 0:03:01.4]} 4... O-O {[%clk 0:02:59.3]} 5. O-O {[%clk 0:03:03.3]}
5... d5 {[%clk 0:03:00.4]} 6. b3 {[%clk 0:03:04.4]} 6... a5 {[%clk 0:02:54.9]}
7. Bb2 {[%clk 0:03:06.3]} 7... a4 {[%clk 0:02:56.2]} 8. a3 {[%clk 0:03:00.7]}
8... axb3 {[%clk 0:02:53.5]} 9. cxb3 {[%clk 0:03:02.6]} 9... Ne4 {[%clk
0:02:51.7]} 10. Nfd2 {[%clk 0:03:01.7]} 10... Nxd2 {[%clk 0:02:40.4]} 11. Nxd2
{[%clk 0:03:01.7]} 11... c5 {[%clk 0:02:36.1]} 12. e3 {[%clk 0:03:02.4]} 12...
cxd4 {[%clk 0:02:31.1]} 13. Bxd4 {[%clk 0:03:01.6]} 13... Bxd4 {[%clk 0:02:29]}
14. exd4 {[%clk 0:03:03.5]} 14... Nc6 {[%clk 0:02:29.8]} 15. Re1 {[%clk
0:02:46.6]} 15... Nxd4 {[%clk 0:02:22.3]} 16. Nf1 {[%clk 0:02:47.1]} 16... Nb5
{[%clk 0:01:47.9]} 17. Qxd5 {[%clk 0:02:13]} 17... Qxd5 {[%clk 0:01:43.6]} 18.
Bxd5 {[%clk 0:02:14.9]} 18... Rxa3 {[%clk 0:01:41.8]} 19. Rxa3 {[%clk
0:02:11.4]} 19... Nxa3 {[%clk 0:01:42.8]} 20. Rxe7 {[%clk 0:02:12.3]} 20... b6
{[%clk 0:01:27.3]} 21. Ne3 {[%clk 0:02:08.5]} 21... Nb5 {[%clk 0:01:16.8]} 22.
Nc4 {[%clk 0:02:02.2]} 22... Nc3 {[%clk 0:01:18]} 23. Nxb6 {[%clk 0:02:02.7]}
23... Nxd5 {[%clk 0:01:13]} 24. Nxd5 {[%clk 0:02:03.3]} 24... Be6 {[%clk
0:01:13.1]} 25. Nf6+ {[%clk 0:01:57.6]} 25... Kg7 {[%clk 0:01:09.8]} 26. Ne8+
{[%clk 0:01:58.3]} 26... Kh6 {[%clk 0:01:04.2]} 27. b4 {[%clk 0:01:58.4]} 27...
Bc4 {[%clk 0:00:52.9]} 28. h4 {[%clk 0:01:50.9]} 28... g5 {[%clk 0:00:48.7]} 29.
Nd6 {[%clk 0:01:47.5]} 29... Bd5 {[%clk 0:00:46.3]} 30. hxg5+ {[%clk 0:01:44.3]}
30... Kxg5 {[%clk 0:00:45.2]} 31. Re5+ {[%clk 0:01:44.6]} 31... Kf6 {[%clk
0:00:39.1]} 32. Rxd5 {[%clk 0:01:45.2]} 32... Ke6 {[%clk 0:00:39.5]} 33. Rd2
{[%clk 0:01:44.9]} 33... Rb8 {[%clk 0:00:33.6]} 34. b5 {[%clk 0:01:45]} 34...
Rd8 {[%clk 0:00:27.6]} 35. Ne4 {[%clk 0:01:42.6]} 35... Rb8 {[%clk 0:00:28.5]}
36. Ng5+ {[%clk 0:01:37.8]} 36... Kf6 {[%clk 0:00:28.3]} 37. Rd5 {[%clk
0:01:36.7]} 37... h6 {[%clk 0:00:27.2]} 38. Ne4+ {[%clk 0:01:37.6]} 38... Ke6
{[%clk 0:00:27.9]} 39. Rh5 {[%clk 0:01:39.1]} 39... f5 {[%clk 0:00:27.4]} 40.
Rxh6+ {[%clk 0:01:38.8]} 40... Kd5 {[%clk 0:00:23.2]} 41. Nf6+ {[%clk
0:01:35.7]} 41... Kd4 {[%clk 0:00:21]} 42. Rh4+ {[%clk 0:01:33.3]} 42... Kc3
{[%clk 0:00:12.5]} 43. b6 {[%clk 0:01:33.3]} 43... Kd3 {[%clk 0:00:10]} 44. Nd7
{[%clk 0:01:32.7]} 44... Rb7 {[%clk 0:00:10.7]} 45. Nc5+ {[%clk 0:01:33.9]} 1-0

[Event "*** Titled Tuesday Blitz"]
[Site "Chess.com"]
[Date "2019.03.05"]
[Round "9"]
[White "SanchezKelvin"]
[Black "NoGalloNoParty"]
[Result "1-0"]
[WhiteElo "2489"]
[BlackElo "2345"]
[TimeControl "180+2"]
[EndTime "15:12:42 PST"]
[Termination "SanchezKelvin won on time"]

1. d4 {[%clk 0:02:48.9]} 1... Nf6 {[%clk 0:03:00.1]} 2. c4 {[%clk 0:02:24.3]}
2... g6 {[%clk 0:02:59.2]} 3. Nc3 {[%clk 0:02:25]} 3... d5 {[%clk 0:03:00]} 4.
Nf3 {[%clk 0:02:25.8]} 4... Bg7 {[%clk 0:03:00.5]} 5. Bg5 {[%clk 0:02:26.8]}
5... Ne4 {[%clk 0:02:59]} 6. cxd5 {[%clk 0:02:28]} 6... Nxg5 {[%clk 0:02:58.9]}
7. Nxg5 {[%clk 0:02:27.6]} 7... e6 {[%clk 0:02:59.9]} 8. Qd2 {[%clk 0:02:28.6]}
8... h6 {[%clk 0:02:59]} 9. Nf3 {[%clk 0:02:29.2]} 9... exd5 {[%clk 0:02:59.8]}
10. e3 {[%clk 0:02:30.9]} 10... O-O {[%clk 0:03:00.4]} 11. h3 {[%clk 0:02:32.1]}
11... c6 {[%clk 0:02:58.8]} 12. Bd3 {[%clk 0:02:33]} 12... Nd7 {[%clk
0:02:56.6]} 13. O-O {[%clk 0:02:33.7]} 13... a5 {[%clk 0:02:55]} 14. a3 {[%clk
0:02:33.8]} 14... Re8 {[%clk 0:02:39.7]} 15. b4 {[%clk 0:01:37.1]} 15... b5
{[%clk 0:02:18.9]} 16. e4 {[%clk 0:01:29.8]} 16... Nb6 {[%clk 0:02:06.9]} 17. e5
{[%clk 0:01:29.6]} 17... Nc4 {[%clk 0:02:04.4]} 18. Qc2 {[%clk 0:01:17.5]} 18...
axb4 {[%clk 0:01:32]} 19. axb4 {[%clk 0:01:16.6]} 19... Rxa1 {[%clk 0:01:27.6]}
20. Rxa1 {[%clk 0:01:18.5]} 20... Qe7 {[%clk 0:01:25.5]} 21. Na2 {[%clk
0:01:03.3]} 21... Bf8 {[%clk 0:01:17.8]} 22. Nd2 {[%clk 0:01:03.4]} 22... Bd7
{[%clk 0:01:03.3]} 23. Nb3 {[%clk 0:00:52.8]} 23... Qg5 {[%clk 0:00:59.8]} 24.
Kf1 {[%clk 0:00:34.8]} 24... Ra8 {[%clk 0:00:56.8]} 25. Re1 {[%clk 0:00:28.8]}
25... Be6 {[%clk 0:00:52]} 26. Bxc4 {[%clk 0:00:21.1]} 26... dxc4 {[%clk
0:00:48.6]} 27. Nc5 {[%clk 0:00:22.3]} 27... Bd5 {[%clk 0:00:49.1]} 28. Ne4
{[%clk 0:00:23.2]} 1-0

[Event "*** Titled Tuesday Blitz"]
[Site "Chess.com"]
[Date "2019.03.05"]
[Round "9"]
[White "INLOVEWITHF"]
[Black "aa175"]
[Result "1-0"]
[WhiteElo "2271"]
[BlackElo "1847"]
[TimeControl "180+2"]
[EndTime "15:12:55 PST"]
[Termination "INLOVEWITHF won by resignation"]

1. e4 {[%clk 0:03:01.9]} 1... e6 {[%clk 0:02:59.5]} 2. d4 {[%clk 0:03:02.4]}
2... d5 {[%clk 0:03:00.7]} 3. Nc3 {[%clk 0:03:03]} 3... c5 {[%clk 0:03:00.9]} 4.
dxc5 {[%clk 0:02:54.8]} 4... d4 {[%clk 0:02:56.2]} 5. Nb5 {[%clk 0:02:43]} 5...
Bxc5 {[%clk 0:02:53.6]} 6. Nf3 {[%clk 0:02:43.9]} 6... Nc6 {[%clk 0:02:48.6]} 7.
Bf4 {[%clk 0:02:44.4]} 7... Bb6 {[%clk 0:02:21.6]} 8. Nd6+ {[%clk 0:02:43.3]}
8... Kf8 {[%clk 0:02:20.2]} 9. Bb5 {[%clk 0:02:36.1]} 9... Bc7 {[%clk
0:02:12.9]} 10. Nxd4 {[%clk 0:02:27]} 10... e5 {[%clk 0:01:41.9]} 11. Nxc6
{[%clk 0:01:58.1]} 11... bxc6 {[%clk 0:01:16]} 12. Bxe5 {[%clk 0:01:18.6]} 12...
cxb5 {[%clk 0:01:11]} 13. Qd5 {[%clk 0:00:54.1]} 13... Be6 {[%clk 0:01:08.3]}
14. Qc5 {[%clk 0:00:54.8]} 14... Ne7 {[%clk 0:01:05]} 15. O-O-O {[%clk
0:00:53.4]} 15... f6 {[%clk 0:01:00.4]} 16. Nf7 {[%clk 0:00:50.8]} 16... Kxf7
{[%clk 0:00:53.6]} 17. Rxd8 {[%clk 0:00:46.3]} 17... Bxe5 {[%clk 0:00:42.6]} 18.
Rxh8 {[%clk 0:00:41.8]} 18... Rxh8 {[%clk 0:00:40.9]} 19. g3 {[%clk 0:00:39.2]}
19... Rc8 {[%clk 0:00:38]} 20. Qxa7 {[%clk 0:00:39]} 20... Bd7 {[%clk 0:00:37]}
21. Qxd7 {[%clk 0:00:38.3]} 21... Ra8 {[%clk 0:00:36]} 22. a3 {[%clk 0:00:36.6]}
22... b4 {[%clk 0:00:35.9]} 23. a4 {[%clk 0:00:32]} 23... b3 {[%clk 0:00:30.6]}
24. cxb3 {[%clk 0:00:26.4]} 24... Rc8+ {[%clk 0:00:30]} 25. Kb1 {[%clk
0:00:27.1]} 25... Rc7 {[%clk 0:00:30.2]} 26. Qd3 {[%clk 0:00:27]} 26... Rb7
{[%clk 0:00:32.1]} 27. f4 {[%clk 0:00:27]} 27... Bb8 {[%clk 0:00:31.6]} 28. Qc4+
{[%clk 0:00:28]} 28... Kf8 {[%clk 0:00:31.8]} 29. e5 {[%clk 0:00:29.9]} 29...
fxe5 {[%clk 0:00:32.7]} 30. fxe5 {[%clk 0:00:31]} 30... Bxe5 {[%clk 0:00:34.4]}
31. Rf1+ {[%clk 0:00:31.7]} 31... Bf6 {[%clk 0:00:36.3]} 32. Rd1 {[%clk
0:00:32.7]} 32... Rb8 {[%clk 0:00:36.4]} 33. g4 {[%clk 0:00:34]} 33... h6 {[%clk
0:00:37.1]} 34. a5 {[%clk 0:00:32.6]} 34... Ra8 {[%clk 0:00:36.1]} 35. a6 {[%clk
0:00:33.5]} 35... Nc8 {[%clk 0:00:37.3]} 36. Qc5+ {[%clk 0:00:32.7]} 36... Be7
{[%clk 0:00:38]} 37. Rf1+ {[%clk 0:00:32.4]} 37... Ke8 {[%clk 0:00:37.9]} 38.
Qc6+ {[%clk 0:00:33.5]} 38... Kd8 {[%clk 0:00:39.1]} 39. Qxa8 {[%clk 0:00:33]}
39... Kc7 {[%clk 0:00:39.8]} 40. Qxc8+ {[%clk 0:00:32.4]} 40... Kd6 {[%clk
0:00:41.7]} 41. Qe6+ {[%clk 0:00:32.4]} 41... Kxe6 {[%clk 0:00:40.6]} 42. Re1+
{[%clk 0:00:33.5]} 1-0

[Event "*** Titled Tuesday Blitz"]
[Site "Chess.com"]
[Date "2019.03.05"]
[Round "9"]
[White "Doraemon7"]
[Black "PaulfromSPb"]
[Result "0-1"]
[WhiteElo "2606"]
[BlackElo "2631"]
[TimeControl "180+2"]
[EndTime "15:13:00 PST"]
[Termination "PaulfromSPb won on time"]

1. d4 {[%clk 0:02:57.9]} 1... Nf6 {[%clk 0:03:00.4]} 2. c4 {[%clk 0:02:58.5]}
2... e6 {[%clk 0:03:01.9]} 3. g3 {[%clk 0:02:58.3]} 3... c5 {[%clk 0:03:00.1]}
4. Nf3 {[%clk 0:02:56.8]} 4... cxd4 {[%clk 0:02:58.1]} 5. Nxd4 {[%clk
0:02:58.7]} 5... d5 {[%clk 0:02:59.8]} 6. Bg2 {[%clk 0:02:59.5]} 6... e5 {[%clk
0:03:01]} 7. Nf3 {[%clk 0:02:58.6]} 7... d4 {[%clk 0:03:02.4]} 8. O-O {[%clk
0:02:56.6]} 8... Nc6 {[%clk 0:03:03.8]} 9. e3 {[%clk 0:02:55.5]} 9... Be7 {[%clk
0:03:05]} 10. exd4 {[%clk 0:02:56.4]} 10... exd4 {[%clk 0:03:06.9]} 11. Bf4
{[%clk 0:02:57.6]} 11... O-O {[%clk 0:03:07.2]} 12. Ne5 {[%clk 0:02:56.4]} 12...
Qb6 {[%clk 0:03:01.4]} 13. Re1 {[%clk 0:02:53.8]} 13... Be6 {[%clk 0:03:00]} 14.
Nd2 {[%clk 0:02:42.9]} 14... Rac8 {[%clk 0:02:56.5]} 15. Qb3 {[%clk 0:02:23.4]}
15... Qa6 {[%clk 0:02:56.9]} 16. Qb5 {[%clk 0:02:10.2]} 16... Nxe5 {[%clk
0:02:50.6]} 17. Qxa6 {[%clk 0:02:01.9]} 17... bxa6 {[%clk 0:02:52.5]} 18. Bxe5
{[%clk 0:02:03.3]} 18... Bc5 {[%clk 0:02:37.1]} 19. Nb3 {[%clk 0:01:44.5]} 19...
Bb4 {[%clk 0:02:17.6]} 20. Red1 {[%clk 0:01:41.1]} 20... Bxc4 {[%clk 0:02:08.6]}
21. Nxd4 {[%clk 0:01:38.9]} 21... Ng4 {[%clk 0:02:05.6]} 22. Bf4 {[%clk
0:01:34.5]} 22... Bc5 {[%clk 0:02:04.6]} 23. h3 {[%clk 0:01:13.6]} 23... Rfd8
{[%clk 0:02:03.1]} 24. Nc6 {[%clk 0:00:42.1]} 24... Rxd1+ {[%clk 0:01:57]} 25.
Rxd1 {[%clk 0:00:44]} 25... Nxf2 {[%clk 0:01:57.2]} 26. Rd7 {[%clk 0:00:20.7]}
26... Nxh3+ {[%clk 0:01:46.8]} 27. Kh2 {[%clk 0:00:21.1]} 27... Nxf4 {[%clk
0:01:45.9]} 28. gxf4 {[%clk 0:00:23]} 28... Bxa2 {[%clk 0:01:35.7]} 29. b4
{[%clk 0:00:13.8]} 29... Be6 {[%clk 0:01:33.6]} 30. Rb7 {[%clk 0:00:09.5]} 30...
Bd6 {[%clk 0:01:32.7]} 31. Kg1 {[%clk 0:00:03.8]} 31... a5 {[%clk 0:01:24.2]}
32. bxa5 {[%clk 0:00:04.2]} 32... a6 {[%clk 0:01:24.8]} 33. f5 {[%clk
0:00:04.3]} 33... Bxf5 {[%clk 0:01:24]} 34. Bd5 {[%clk 0:00:06]} 34... Be6
{[%clk 0:01:23.1]} 35. Bf3 {[%clk 0:00:03.9]} 35... g5 {[%clk 0:01:22.3]} 36.
Kg2 {[%clk 0:00:03.1]} 36... g4 {[%clk 0:01:22.4]} 37. Be4 {[%clk 0:00:04.2]}
37... h5 {[%clk 0:01:23.7]} 38. Rb6 {[%clk 0:00:04.1]} 38... f5 {[%clk
0:01:15.2]} 39. Ne7+ {[%clk 0:00:05.4]} 39... Bxe7 {[%clk 0:01:14.4]} 40. Rxe6
{[%clk 0:00:07.3]} 40... Kf7 {[%clk 0:01:08.8]} 41. Bxf5 {[%clk 0:00:07.1]}
41... Rc5 {[%clk 0:01:09.7]} 42. Re4 {[%clk 0:00:06.1]} 42... Rxf5 {[%clk
0:01:09.9]} 0-1

[Event "*** Titled Tuesday Blitz"]
[Site "Chess.com"]
[Date "2019.03.05"]
[Round "9"]
[White "Sajkochess"]
[Black "b_6"]
[Result "0-1"]
[WhiteElo "2258"]
[BlackElo "2441"]
[TimeControl "180+2"]
[EndTime "15:13:01 PST"]
[Termination "b_6 won by resignation"]

1. e4 {[%clk 0:03:01.9]} 1... e6 {[%clk 0:03:00.3]} 2. d3 {[%clk 0:03:02.4]}
2... d5 {[%clk 0:03:02]} 3. Nd2 {[%clk 0:03:03.7]} 3... Nf6 {[%clk 0:03:03.2]}
4. Ngf3 {[%clk 0:03:04.4]} 4... Bc5 {[%clk 0:03:04.1]} 5. e5 {[%clk 0:02:58.8]}
5... Nfd7 {[%clk 0:03:05.2]} 6. d4 {[%clk 0:02:59.9]} 6... Be7 {[%clk
0:03:06.2]} 7. Bd3 {[%clk 0:02:54.5]} 7... c5 {[%clk 0:03:06.7]} 8. c3 {[%clk
0:02:55.7]} 8... b6 {[%clk 0:03:08.1]} 9. Qe2 {[%clk 0:02:46.1]} 9... a5 {[%clk
0:03:08.6]} 10. O-O {[%clk 0:02:33.1]} 10... Ba6 {[%clk 0:03:08.8]} 11. Rd1
{[%clk 0:02:24.7]} 11... Bxd3 {[%clk 0:03:07.1]} 12. Qxd3 {[%clk 0:02:25.2]}
12... Nc6 {[%clk 0:03:08.7]} 13. Nf1 {[%clk 0:02:23.7]} 13... Qc7 {[%clk
0:03:06]} 14. Ng3 {[%clk 0:02:17.7]} 14... cxd4 {[%clk 0:02:52.3]} 15. cxd4
{[%clk 0:02:18.1]} 15... Nb4 {[%clk 0:02:53]} 16. Qb5 {[%clk 0:02:11.6]} 16...
Qc6 {[%clk 0:02:39.5]} 17. Qe2 {[%clk 0:02:02.4]} 17... Qc2 {[%clk 0:02:26.1]}
18. Qf1 {[%clk 0:01:51.6]} 18... O-O {[%clk 0:02:11.4]} 19. a3 {[%clk 0:01:51]}
19... Nc6 {[%clk 0:01:59.1]} 20. Bg5 {[%clk 0:00:53.9]} 20... Bxg5 {[%clk
0:01:49.3]} 21. Nxg5 {[%clk 0:00:55.8]} 21... Rfc8 {[%clk 0:01:46.8]} 22. Qb5
{[%clk 0:00:41.8]} 22... h6 {[%clk 0:00:59.1]} 23. Rac1 {[%clk 0:00:37]} 23...
Nxd4 {[%clk 0:00:56.3]} 24. Qxd7 {[%clk 0:00:16.9]} 24... Qxc1 {[%clk 0:00:54]}
25. Qxf7+ {[%clk 0:00:16.3]} 25... Kh8 {[%clk 0:00:53.7]} 26. Qh5 {[%clk
0:00:15]} 26... Qxg5 {[%clk 0:00:52.8]} 27. Qxg5 {[%clk 0:00:09.7]} 27... hxg5
{[%clk 0:00:54.7]} 28. Rxd4 {[%clk 0:00:10.7]} 28... Rc1+ {[%clk 0:00:52.5]} 29.
Nf1 {[%clk 0:00:11.6]} 29... Rac8 {[%clk 0:00:52.8]} 30. g3 {[%clk 0:00:12]}
30... R8c4 {[%clk 0:00:49.5]} 31. Rd2 {[%clk 0:00:12.3]} 31... R4c2 {[%clk
0:00:49.3]} 32. Rxc2 {[%clk 0:00:08.4]} 32... Rxc2 {[%clk 0:00:51.2]} 33. b4
{[%clk 0:00:09.9]} 33... axb4 {[%clk 0:00:51.6]} 34. axb4 {[%clk 0:00:11.8]}
34... Rb2 {[%clk 0:00:53.1]} 35. Ne3 {[%clk 0:00:11.3]} 35... Rxb4 {[%clk
0:00:53.6]} 36. Nc2 {[%clk 0:00:07.8]} 36... Rc4 {[%clk 0:00:52.9]} 37. Ne3
{[%clk 0:00:08.2]} 37... Rc1+ {[%clk 0:00:50.6]} 38. Kg2 {[%clk 0:00:08.9]}
38... b5 {[%clk 0:00:51.8]} 39. h4 {[%clk 0:00:08.9]} 39... gxh4 {[%clk
0:00:52.1]} 40. gxh4 {[%clk 0:00:09.9]} 40... b4 {[%clk 0:00:52.8]} 41. Kf3
{[%clk 0:00:11.3]} 41... b3 {[%clk 0:00:53.3]} 42. Ke2 {[%clk 0:00:12.6]} 42...
b2 {[%clk 0:00:54.7]} 43. f4 {[%clk 0:00:11.8]} 43... b1=Q {[%clk 0:00:55.6]}
0-1

[Event "*** Titled Tuesday Blitz"]
[Site "Chess.com"]
[Date "2019.03.05"]
[Round "9"]
[White "Fivetrick"]
[Black "yuki_chess123"]
[Result "0-1"]
[WhiteElo "2431"]
[BlackElo "2138"]
[TimeControl "180+2"]
[EndTime "15:13:10 PST"]
[Termination "yuki_chess123 won on time"]

1. e4 {[%clk 0:03:01.9]} 1... g6 {[%clk 0:03:00.3]} 2. d4 {[%clk 0:03:02.1]}
2... Bg7 {[%clk 0:03:01.4]} 3. Nc3 {[%clk 0:03:01]} 3... c6 {[%clk 0:03:02.1]}
4. Be3 {[%clk 0:02:52.6]} 4... d5 {[%clk 0:03:02.1]} 5. exd5 {[%clk 0:02:53.1]}
5... cxd5 {[%clk 0:03:02.6]} 6. Bd3 {[%clk 0:02:48.6]} 6... Nc6 {[%clk
0:03:03.8]} 7. Nge2 {[%clk 0:02:48.9]} 7... Nf6 {[%clk 0:03:02.4]} 8. h3 {[%clk
0:02:43.1]} 8... O-O {[%clk 0:02:59.3]} 9. Qd2 {[%clk 0:02:43.4]} 9... e5 {[%clk
0:02:59.9]} 10. dxe5 {[%clk 0:02:39.1]} 10... Nxe5 {[%clk 0:03:01.8]} 11. O-O
{[%clk 0:02:37.4]} 11... Nxd3 {[%clk 0:02:43.3]} 12. Qxd3 {[%clk 0:02:37.5]}
12... Bf5 {[%clk 0:02:42.5]} 13. Qd2 {[%clk 0:02:37.6]} 13... Ne4 {[%clk
0:02:41.5]} 14. Nxe4 {[%clk 0:02:29.1]} 14... dxe4 {[%clk 0:02:41.2]} 15. Qb4
{[%clk 0:01:58]} 15... Qc7 {[%clk 0:02:30.8]} 16. c3 {[%clk 0:01:47.9]} 16...
Rfd8 {[%clk 0:02:22.3]} 17. Ng3 {[%clk 0:01:27.2]} 17... Bf8 {[%clk 0:02:11.9]}
18. Qb3 {[%clk 0:01:07.6]} 18... Be6 {[%clk 0:02:10.4]} 19. Qc2 {[%clk
0:01:07.5]} 19... f5 {[%clk 0:02:10.6]} 20. Ne2 {[%clk 0:01:00.8]} 20... Bc4
{[%clk 0:02:02.5]} 21. Nd4 {[%clk 0:00:12.7]} 21... Qf7 {[%clk 0:01:56.1]} 22.
Rfd1 {[%clk 0:00:11.3]} 22... Bg7 {[%clk 0:01:53.9]} 23. b3 {[%clk 0:00:05.5]}
23... Bd3 {[%clk 0:01:53.7]} 24. Qb2 {[%clk 0:00:05.5]} 24... f4 {[%clk
0:01:54]} 25. Bc1 {[%clk 0:00:05.5]} 25... Rxd4 {[%clk 0:01:51.5]} 26. cxd4
{[%clk 0:00:06.1]} 26... Rd8 {[%clk 0:01:52.9]} 27. Rxd3 {[%clk 0:00:04.1]}
27... exd3 {[%clk 0:01:53]} 28. Bd2 {[%clk 0:00:04.9]} 28... Bxd4 {[%clk
0:01:43.9]} 29. Bc3 {[%clk 0:00:06.1]} 29... Bb6 {[%clk 0:01:26.4]} 30. Qd2
{[%clk 0:00:06.6]} 30... g5 {[%clk 0:01:20.6]} 31. Re1 {[%clk 0:00:06.1]} 31...
Rd7 {[%clk 0:01:11.4]} 32. Re5 {[%clk 0:00:06.5]} 32... h6 {[%clk 0:01:11.7]}
33. Kh2 {[%clk 0:00:05.8]} 33... Bc7 {[%clk 0:01:05.8]} 34. Rb5 {[%clk
0:00:03.4]} 34... f3+ {[%clk 0:01:04]} 35. g3 {[%clk 0:00:03.8]} 35... Qe6
{[%clk 0:01:01]} 36. Rb4 {[%clk 0:00:04.2]} 36... Qe2 {[%clk 0:00:51.9]} 37.
Qxe2 {[%clk 0:00:02.5]} 37... fxe2 {[%clk 0:00:46]} 38. Be1 {[%clk 0:00:02.1]}
38... Ba5 {[%clk 0:00:46.2]} 0-1

[Event "*** Titled Tuesday Blitz"]
[Site "Chess.com"]
[Date "2019.03.05"]
[Round "9"]
[White "chenrip"]
[Black "M1711"]
[Result "1-0"]
[WhiteElo "2333"]
[BlackElo "2491"]
[TimeControl "180+2"]
[EndTime "15:13:13 PST"]
[Termination "chenrip won by checkmate"]

1. e4 {[%clk 0:03:01.9]} 1... Nc6 {[%clk 0:02:58.4]} 2. Nf3 {[%clk 0:03:02.3]}
2... d6 {[%clk 0:02:56.8]} 3. d4 {[%clk 0:03:03.2]} 3... Nf6 {[%clk 0:02:57.1]}
4. Nc3 {[%clk 0:03:03.5]} 4... g6 {[%clk 0:02:57.9]} 5. Be3 {[%clk 0:03:01.5]}
5... Bg7 {[%clk 0:02:56.1]} 6. h3 {[%clk 0:03:02.7]} 6... O-O {[%clk 0:02:56.5]}
7. Qd2 {[%clk 0:03:03]} 7... e5 {[%clk 0:02:57]} 8. d5 {[%clk 0:03:03.2]} 8...
Ne7 {[%clk 0:02:55.5]} 9. g4 {[%clk 0:03:01.9]} 9... c6 {[%clk 0:02:54.2]} 10.
dxc6 {[%clk 0:03:01.6]} 10... bxc6 {[%clk 0:02:49.2]} 11. O-O-O {[%clk
0:03:00.3]} 11... Ne8 {[%clk 0:02:42.3]} 12. Bh6 {[%clk 0:02:53.4]} 12... Bb7
{[%clk 0:02:27.5]} 13. Bxg7 {[%clk 0:02:53.5]} 13... Kxg7 {[%clk 0:02:27.9]} 14.
h4 {[%clk 0:02:54.8]} 14... f6 {[%clk 0:02:26.8]} 15. g5 {[%clk 0:02:52.4]}
15... f5 {[%clk 0:02:24.5]} 16. Bg2 {[%clk 0:02:47.7]} 16... c5 {[%clk
0:02:11.5]} 17. Nxe5 {[%clk 0:02:44.1]} 17... fxe4 {[%clk 0:02:08.5]} 18. Nxe4
{[%clk 0:02:37.1]} 18... Nf5 {[%clk 0:02:01.4]} 19. h5 {[%clk 0:02:28]} 19...
Nd4 {[%clk 0:02:01]} 20. hxg6 {[%clk 0:01:55.8]} 20... hxg6 {[%clk 0:01:57.3]}
21. Nf6 {[%clk 0:01:53.3]} 21... Nxf6 {[%clk 0:01:20.4]} 22. Bxb7 {[%clk
0:01:51.3]} 22... Nh5 {[%clk 0:01:10.3]} 23. Nxg6 {[%clk 0:01:48.2]} 23... Kxg6
{[%clk 0:00:58.9]} 24. Be4+ {[%clk 0:01:48]} 24... Nf5 {[%clk 0:00:57]} 25. Rxh5
{[%clk 0:01:35]} 25... Kxh5 {[%clk 0:00:51.7]} 26. Rh1+ {[%clk 0:01:35.7]} 26...
Nh4 {[%clk 0:00:28.1]} 27. Qe2+ {[%clk 0:01:35.8]} 27... Kxg5 {[%clk 0:00:28.1]}
28. Rg1+ {[%clk 0:01:33.9]} 28... Kf6 {[%clk 0:00:20.7]} 29. Qh5 {[%clk
0:01:24.7]} 29... Ke6 {[%clk 0:00:11.7]} 30. Bd5+ {[%clk 0:01:21]} 30... Kd7
{[%clk 0:00:08.2]} 31. Rg7+ {[%clk 0:01:18.8]} 31... Kc8 {[%clk 0:00:08.5]} 32.
Bxa8 {[%clk 0:01:01.7]} 32... Qf6 {[%clk 0:00:09.7]} 33. Qg4+ {[%clk 0:00:59.8]}
33... Nf5 {[%clk 0:00:07.2]} 34. Rg5 {[%clk 0:00:31.2]} 34... Kb8 {[%clk
0:00:05.7]} 35. Qf3 {[%clk 0:00:22.9]} 35... Qf7 {[%clk 0:00:02.8]} 36. Rxf5
{[%clk 0:00:22]} 36... Qxf5 {[%clk 0:00:02.5]} 37. Qb7# {[%clk 0:00:22.9]} 1-0

[Event "*** Titled Tuesday Blitz"]
[Site "Chess.com"]
[Date "2019.03.05"]
[Round "9"]
[White "Last7Samurai"]
[Black "Salem-AR"]
[Result "0-1"]
[WhiteElo "2688"]
[BlackElo "2916"]
[TimeControl "180+2"]
[EndTime "15:13:15 PST"]
[Termination "Salem-AR won on time"]

1. e4 {[%clk 0:03:01.9]} 1... c5 {[%clk 0:03:00.8]} 2. c3 {[%clk 0:03:01]} 2...
d6 {[%clk 0:03:01.2]} 3. d4 {[%clk 0:03:01.9]} 3... Nf6 {[%clk 0:03:02.9]} 4.
Bd3 {[%clk 0:03:02.7]} 4... g6 {[%clk 0:03:04]} 5. Nf3 {[%clk 0:03:03.6]} 5...
Bg7 {[%clk 0:03:05.4]} 6. O-O {[%clk 0:03:04.8]} 6... O-O {[%clk 0:03:06.3]} 7.
h3 {[%clk 0:03:05.1]} 7... Nfd7 {[%clk 0:03:07]} 8. Be3 {[%clk 0:03:03.8]} 8...
Nc6 {[%clk 0:03:08.4]} 9. Re1 {[%clk 0:03:04]} 9... Rb8 {[%clk 0:03:06.9]} 10.
a4 {[%clk 0:03:04.6]} 10... cxd4 {[%clk 0:03:06]} 11. cxd4 {[%clk 0:03:05.5]}
11... b6 {[%clk 0:03:07.1]} 12. Nc3 {[%clk 0:03:05.1]} 12... Nb4 {[%clk
0:03:08]} 13. Bf1 {[%clk 0:03:02.1]} 13... Bb7 {[%clk 0:03:08.9]} 14. d5 {[%clk
0:03:01.3]} 14... Rc8 {[%clk 0:03:05.7]} 15. Bd4 {[%clk 0:02:59.3]} 15... Nf6
{[%clk 0:02:57.7]} 16. a5 {[%clk 0:02:42.6]} 16... bxa5 {[%clk 0:02:58.2]} 17.
Bxa7 {[%clk 0:02:42.2]} 17... Nd7 {[%clk 0:02:56.7]} 18. Bd4 {[%clk 0:02:42.8]}
18... Bxd4 {[%clk 0:02:50.5]} 19. Nxd4 {[%clk 0:02:44.7]} 19... Nc5 {[%clk
0:02:43.3]} 20. Qd2 {[%clk 0:02:40.7]} 20... Qb6 {[%clk 0:02:40.6]} 21. Rad1
{[%clk 0:02:32.6]} 21... Ba6 {[%clk 0:02:28.6]} 22. Bxa6 {[%clk 0:02:22.7]}
22... Qxa6 {[%clk 0:02:30.5]} 23. Qh6 {[%clk 0:02:22.7]} 23... Ncd3 {[%clk
0:02:25]} 24. Re3 {[%clk 0:02:20.1]} 24... Kh8 {[%clk 0:02:14.4]} 25. e5 {[%clk
0:01:36.4]} 25... dxe5 {[%clk 0:01:41]} 26. Ne4 {[%clk 0:01:36.8]} 26... Rg8
{[%clk 0:01:36.2]} 27. Ng5 {[%clk 0:00:50.7]} 27... Rg7 {[%clk 0:01:36.8]} 28.
Rdxd3 {[%clk 0:00:50.9]} 28... exd4 {[%clk 0:00:29.8]} 29. Rxd4 {[%clk
0:00:28.8]} 29... Nc2 {[%clk 0:00:30.7]} 30. Rde4 {[%clk 0:00:04.1]} 30... Nxe3
{[%clk 0:00:29.4]} 31. Rxe3 {[%clk 0:00:06]} 31... Qf6 {[%clk 0:00:27.7]} 32.
Rf3 {[%clk 0:00:06.4]} 32... Rc1+ {[%clk 0:00:15.8]} 33. Kh2 {[%clk 0:00:07.1]}
33... Qe5+ {[%clk 0:00:17.5]} 34. g3 {[%clk 0:00:08.3]} 34... Qe1 {[%clk
0:00:18.9]} 0-1